Workbook

Sheet MAIN
A1: pksaini
A2: Income Tax Utility
A3: 2024-25
A4: with truly unlimited employees for office use
A5: =_xlfn.UNICHAR(ROW()-4+9311)&" DATA ENTRY" -> ① DATA ENTRY
A6: =_xlfn.UNICHAR(ROW()-4+9311)&" SALARY SHEET / SALARY FORM" -> ② SALARY SHEET / SALARY FORM
A7: =_xlfn.UNICHAR(ROW()-4+9311)&" PRINT PDF" -> ③ PRINT PDF

Sheet data
A1: Col1_1 | B1: Col1_2 | C1: Col1_3 | D1: Col1_4 | E1: Col1_5 | F1: Col1_6 | G1: Col1_7 | H1: Col1_8 | I1: Col1_9 | J1: Col1_10 | K1: Col1_11 | L1: Col1_12 | M1: Col1_13 | N1: Col1_14 | O1: Col1_15 | P1: Col1_16 | Q1: Col1_17 | R1: Col1_18 | S1: Col1_19 | T1: Col1_20 | U1: Col1_21 | V1: Col1_22 | W1: Col1_23 | X1: Col1_24 | Y1: Col1_25 | Z1: Col1_26 | AA1: 1 | AB1: 2 | AC1: 3 | AD1: 4 | AE1: 5 | AF1: 6 | AG1: 7 | AH1: 8 | AI1: 9 | AJ1: 10 | AK1: 11 | AL1: 12 | AM1: 13 | AN1: 14 | AO1: 15 | AP1: 16 | AQ1: 17 | AR1: 18 | AS1: 19 | AT1: 20 | QE1: Relief 10E
A2: Col2_1 | B2: Col2_2 | C2: Col2_3 | D2: Col2_4 | E2: Col2_5 | F2: Col2_6 | G2: Col2_7 | H2: Col2_8 | I2: Col2_9 | J2: Col2_10 | K2: Col2_11 | L2: Col2_12 | M2: Col2_13 | N2: Col2_14 | O2: Col2_15 | P2: Col2_16 | Q2: Col2_17 | R2: Col2_18 | S2: Col2_19 | T2: Col2_20 | U2: Col2_21 | V2: Col2_22 | W2: Col2_23 | X2: Col2_24 | Y2: Col2_25 | Z2: Col2_26 | AA2: Col2_27 | AB2: Col2_28 | AC2: Col2_29 | AD2: Col2_30 | AE2: Col2_31 | AF2: Col2_32 | AG2: Col2_33 | AH2: Col2_34 | AI2: Col2_35 | AJ2: Col2_36 | AK2: Col2_37 | AL2: Col2_38 | AM2: Col2_39 | AN2: Col2_40 | AO2: Col2_41 | AP2: Col2_42 | AQ2: Col2_43 | AR2: Col2_44 | AS2: Col2_45 | AT2: Col2_46 | AU2: Col2_47 | AV2: Col2_48 | AW2: Col2_49 | AX2: Col2_50 | AY2: Col2_51 | AZ2: Col2_52 | BA2: Col2_53 | BB2: Col2_54 | BC2: Col2_55 | BD2: Col2_56 | BE2: Col2_57 | BF2: Col2_58 | BG2: Col2_59 | BH2: Col2_60 | BI2: Col2_61 | BJ2: Col2_62 | BK2: Col2_63 | BL2: Col2_64 | BM2: Col2_65 | BN2: Col2_66 | BO2: Col2_67 | BP2: Col2_68 | BQ2: Col2_69 | BR2: Col2_70 | BS2: Col2_71 | BT2: Col2_72 | BU2: Col2_73 | BV2: Col2_74 | BW2: Col2_75 | BX2: Col2_76 | BY2: Col2_77 | BZ2: Col2_78 | CA2: Col2_79 | CB2: Col2_80 | CC2: Col2_81 | CD2: Col2_82 | CE2: Col2_83 | CF2: Col2_84 | CG2: Col2_85 | CH2: Col2_86 | CI2: Col2_87 | CJ2: Col2_88 | CK2: Col2_89 | CL2: Col2_90 | CM2: Col2_91 | CN2: Col2_92 | CO2: Col2_93 | CP2: Col2_94 | CQ2: Col2_95 | CR2: Col2_96 | CS2: Col2_97 | CT2: Col2_98 | CU2: Col2_99 | CV2: Col2_100 | CW2: Col2_101 | CX2: Col2_102 | CY2: Col2_103 | CZ2: Col2_104 | DA2: Col2_105 | DB2: Col2_106 | DC2: Col2_107 | DD2: Col2_108 | DE2: Col2_109 | DF2: Col2_110 | DG2: Col2_111 | DH2: Col2_112 | DI2: Col2_113 | DJ2: Col2_114 | DK2: Col2_115 | DL2: Col2_116 | DM2: Col2_117 | DN2: Col2_118 | DO2: Col2_119 | DP2: Col2_120 | DQ2: Col2_121 | DR2: Col2_122 | DS2: Col2_123 | DT2: Col2_124 | DU2: Col2_125 | DV2: Col2_126 | DW2: Col2_127 | DX2: Col2_128 | DY2: Col2_129 | DZ2: Col2_130 | EA2: Col2_131 | EB2: Col2_132 | EC2: Col2_133 | ED2: Col2_134 | EE2: Col2_135 | EF2: Col2_136 | EG2: Col2_137 | EH2: Col2_138 | EI2: Col2_139 | EJ2: Col2_140 | EK2: Col2_141 | EL2: Col2_142 | EM2: Col2_143 | EN2: Col2_144 | EO2: Col2_145 | EP2: Col2_146 | EQ2: Col2_147 | ER2: Col2_148 | ES2: Col2_149 | ET2: Col2_150 | EU2: Col2_151 | EV2: Col2_152 | EW2: Col2_153 | EX2: Col2_154 | EY2: Col2_155 | EZ2: Col2_156 | FA2: Col2_157 | FB2: Col2_158 | FC2: Col2_159 | FD2: Col2_160 | FE2: Col2_161 | FF2: Col2_162 | FG2: Col2_163 | FH2: Col2_164 | FI2: Col2_165 | FJ2: Col2_166 | FK2: Col2_167 | FL2: Col2_168 | FM2: Col2_169 | FN2: Col2_170 | FO2: Col2_171 | FP2: Col2_172 | FQ2: Col2_173 | FR2: Col2_174 | FS2: Col2_175 | FT2: Col2_176 | FU2: Col2_177 | FV2: Col2_178 | FW2: Col2_179 | FX2: Col2_180 | FY2: Col2_181 | FZ2: Col2_182 | GA2: Col2_183 | GB2: Col2_184 | GC2: Col2_185 | GD2: Col2_186 | GE2: Col2_187 | GF2: Col2_188 | GG2: Col2_189 | GH2: Col2_190 | GI2: Col2_191 | GJ2: Col2_192 | GK2: Col2_193 | GL2: Col2_194 | GM2: Col2_195 | GN2: Col2_196 | GO2: Col2_197 | GP2: Col2_198 | GQ2: Col2_199 | GR2: Col2_200 | GS2: Col2_201 | GT2: Col2_202 | GU2: Col2_203 | GV2: Col2_204 | GW2: Col2_205 | GX2: Col2_206 | GY2: Col2_207 | GZ2: Col2_208 | HA2: Col2_209 | HB2: Col2_210 | HC2: Col2_211 | HD2: Col2_212 | HE2: Col2_213 | HF2: Col2_214 | HG2: Col2_215 | HH2: Col2_216 | HI2: Col2_217 | HJ2: Col2_218 | HK2: Col2_219 | HL2: Col2_220 | HM2: Col2_221 | HN2: Col2_222 | HO2: Col2_223 | HP2: Col2_224 | HQ2: Col2_225 | HR2: Col2_226 | HS2: Col2_227 | HT2: Col2_228 | HU2: Col2_229 | HV2: Col2_230 | HW2: Col2_231 | HX2: Col2_232 | HY2: Col2_233 | HZ2: Col2_234 | IA2: Col2_235 | IB2: Col2_236 | IC2: Col2_237 | ID2: Col2_238 | IE2: Col2_239 | IF2: Col2_240 | IG2: Col2_241 | IH2: Col2_242 | II2: Col2_243 | IJ2: Col2_244 | IK2: Col2_245 | IL2: Col2_246 | IM2: Col2_247 | IN2: Col2_248 | IO2: Col2_249 | IP2: Col2_250 | IQ2: Col2_251 | IR2: Col2_252 | IS2: Col2_253 | IT2: Col2_254 | IU2: Col2_255 | IV2: Col2_256 | IW2: Col2_257 | IX2: Col2_258 | IY2: Col2_259 | IZ2: Col2_260 | JA2: Col2_261 | JB2: Col2_262 | JC2: Col2_263 | JD2: Col2_264 | JE2: Col2_265 | JF2: Col2_266 | JG2: Col2_267 | JH2: Col2_268 | JI2: Col2_269 | JJ2: Col2_270 | JK2: Col2_271 | JL2: Col2_272 | JM2: Col2_273 | JN2: Col2_274 | JO2: Col2_275 | JP2: Col2_276 | JQ2: Col2_277 | JR2: Col2_278 | JS2: Col2_279 | JT2: Col2_280 | JU2: Col2_281 | JV2: Col2_282 | JW2: Col2_283 | JX2: Col2_284 | JY2: Col2_285 | JZ2: Col2_286 | KA2: Col2_287 | KB2: Col2_288 | KC2: Col2_289 | KD2: Col2_290 | KE2: Col2_291 | KF2: Col2_292 | KG2: Col2_293 | KH2: Col2_294 | KI2: Col2_295 | KJ2: Col2_296 | KK2: Col2_297 | KL2: Col2_298 | KM2: Col2_299 | KN2: Col2_300 | KO2: Col2_301 | KP2: Col2_302 | KQ2: Col2_303 | KR2: Col2_304 | KS2: Col2_305 | KT2: Col2_306 | KU2: Col2_307 | KV2: Col2_308 | KW2: Col2_309 | KX2: Col2_310 | KY2: Col2_311 | KZ2: Col2_312 | LA2: Col2_313 | LB2: Col2_314 | LC2: Col2_315 | LD2: Col2_316 | LE2: Col2_317 | LF2: Col2_318 | LG2: Col2_319 | LH2: Col2_320 | LI2: Col2_321 | LJ2: Col2_322 | LK2: Col2_323 | LL2: Col2_324 | LM2: Col2_325 | LN2: Col2_326 | LO2: Col2_327 | LP2: Col2_328 | LQ2: Col2_329 | LR2: Col2_330 | LS2: Col2_331 | LT2: Col2_332 | LU2: Col2_333 | LV2: Col2_334 | LW2: Col2_335 | LX2: Col2_336 | LY2: Col2_337 | LZ2: Col2_338 | MA2: Col2_339 | MB2: Col2_340 | MC2: Col2_341 | MD2: Col2_342 | ME2: Col2_343 | MF2: Col2_344 | MG2: Col2_345 | MH2: Col2_346 | MI2: Col2_347 | MJ2: Col2_348 | MK2: Col2_349 | ML2: Col2_350 | MM2: Col2_351 | MN2: Col2_352 | MO2: Col2_353 | MP2: Col2_354 | MQ2: Col2_355 | MR2: Col2_356 | MS2: Col2_357 | MT2: Col2_358 | MU2: Col2_359 | MV2: Col2_360 | MW2: Col2_361 | MX2: Col2_362 | MY2: Col2_363 | MZ2: Col2_364 | NA2: Col2_365 | NB2: Col2_366 | NC2: Col2_367 | ND2: Col2_368 | NE2: Col2_369 | NF2: Col2_370 | NG2: Col2_371 | NH2: Col2_372 | NI2: Col2_373 | NJ2: Col2_374 | NK2: Col2_375 | NL2: Col2_376 | NM2: Col2_377 | NN2: Col2_378 | NO2: Col2_379 | NP2: Col2_380 | NQ2: Col2_381 | NR2: Col2_382 | NS2: Col2_383 | NT2: Col2_384 | NU2: Col2_385 | NV2: Col2_386 | NW2: Col2_387 | NX2: Col2_388 | NY2: Col2_389 | NZ2: Col2_390 | OA2: Col2_391 | OB2: Col2_392 | OC2: Col2_393 | OD2: Col2_394 | OE2: Col2_395 | OF2: Col2_396 | OG2: Col2_397 | OH2: Col2_398 | OI2: Col2_399 | OJ2: Col2_400 | OK2: Col2_401 | OL2: Col2_402 | OM2: Col2_403 | ON2: Col2_404 | OO2: Col2_405 | OP2: Col2_406 | OQ2: Col2_407 | OR2: Col2_408 | OS2: Col2_409 | OT2: Col2_410 | OU2: Col2_411 | OV2: Col2_412 | OW2: Col2_413 | OX2: Col2_414 | OY2: Col2_415 | OZ2: Col2_416 | PA2: Col2_417 | PB2: Col2_418 | PC2: Col2_419 | PD2: Col2_420 | PE2: Col2_421 | PF2: Col2_422 | PG2: Col2_423 | PH2: Col2_424 | PI2: Col2_425 | PJ2: Col2_426 | PK2: Col2_427 | PL2: Col2_428 | PM2: Col2_429 | PN2: Col2_430 | PO2: Col2_431 | PP2: Col2_432 | PQ2: Col2_433 | PR2: Col2_434 | PS2: Col2_435 | PT2: Col2_436 | PU2: Col2_437 | PV2: Col2_438 | PW2: Col2_439 | PX2: Col2_440 | PY2: Col2_441 | PZ2: Col2_442 | QA2: Col2_443 | QB2: Col2_444 | QC2: Col2_445 | QD2: Col2_446 | QE2: 2020-21 | QH2: 2021-22 | QK2: 2022-23 | QN2: 2023-24
A3: Col3_1 | B3: Col3_2 | C3: Col3_3 | D3: Col3_4 | E3: Col3_5 | F3: Col3_6 | G3: Col3_7 | H3: Col3_8 | I3: Col3_9 | J3: Col3_10 | K3: Col3_11 | L3: Col3_12 | M3: Col3_13 | N3: Col3_14 | O3: Col3_15 | P3: Col3_16 | Q3: Col3_17 | R3: Col3_18 | S3: Col3_19 | T3: Col3_20 | U3: Col3_21 | V3: Col3_22 | W3: Col3_23 | X3: Col3_24 | Y3: Col3_25 | Z3: Col3_26 | QE3: TI | QF3: SA | QG3: TR | QH3: TI | QI3: SA | QJ3: TR | QK3: TI | QL3: SA | QM3: TR | QN3: TI | QO3: SA | QP3: TR
A4: 1 | B4: Pramod Kumar Saini | C4: Teacher | D4: ASDFG | E4: GSSS Malutana | F4: 49300 | G4: 7 | I4: 12 | J4: 700 | K4: 100000 | P4: 58834 | Q4: 50000 | R4: 58834 | S4: 7934 | AA4: 49300 | AB4: 49300 | AC4: 49300 | AD4: 49300 | AE4: 50800 | AF4: 50800 | AG4: 50800 | AH4: 50800 | AI4: 50800 | AJ4: 50800 | AK4: 50800 | AL4: 50800 | AP4: 0 | AV4: 0 | AW4: 0 | AX4: 0 | AY4: 0 | AZ4: 0 | BA4: 0 | BB4: 0 | BC4: 0 | BD4: 0 | BE4: 0 | BF4: 0 | BP4: 0 | BQ4: 0 | BR4: 0 | BS4: 0 | BT4: 0 | BU4: 0 | BV4: 0 | BW4: 0 | BX4: 0 | BY4: 0 | BZ4: 0 | CI4: 24650 | CJ4: 24650 | CK4: 24650 | CL4: 24650 | CM4: 25400 | CN4: 25400 | CO4: 25400 | CP4: 25400 | CQ4: 26924 | CR4: 26924 | CS4: 26924 | CT4: 26924 | CU4: 3944 | CV4: 6096 | CX4: 0 | DC4: 4437 | DD4: 4437 | DE4: 4437 | DF4: 4437 | DG4: 4572 | DH4: 4572 | DI4: 4572 | DJ4: 4572 | DK4: 5080 | DL4: 5080 | DM4: 5080 | DN4: 5080 | DQ4: 0 | DX4: 0 | DY4: 0 | DZ4: 0 | EA4: 0 | EB4: 0 | EC4: 0 | ED4: 0 | EE4: 0 | EF4: 0 | EG4: 0 | EH4: 0 | ER4: 0 | ES4: 0 | ET4: 0 | EU4: 0 | EV4: 0 | EW4: 0 | EX4: 0 | EY4: 0 | EZ4: 0 | FA4: 0 | FB4: 0 | GA4: 6774 | GZ4: 0 | HA4: 0 | HB4: 0 | HC4: 0 | HD4: 0 | HE4: 0 | HF4: 0 | HG4: 0 | HH4: 0 | HI4: 0 | HJ4: 0 | HS4: 5000 | HT4: 5000 | HU4: 5000 | HV4: 5000 | HW4: 5000 | HX4: 5000 | HY4: 5000 | HZ4: 2850 | IA4: 2850 | IB4: 2850 | IC4: 2850 | ID4: 2850 | IE4: 3944 | IF4: 6096 | II4: 1694 | IN4: 0 | IO4: 0 | IP4: 0 | IQ4: 0 | IR4: 0 | IS4: 0 | IT4: 0 | IU4: 0 | IV4: 0 | IW4: 0 | IX4: 0 | JG4: 7000 | JH4: 7000 | JI4: 7000 | JJ4: 7000 | JK4: 7000 | JL4: 7000 | JM4: 7000 | JN4: 7000 | JO4: 7000 | JP4: 7000 | JQ4: 7000 | JR4: 7000 | KB4: 0 | KC4: 0 | KD4: 0 | KE4: 0 | KF4: 0 | KG4: 0 | KH4: 0 | KI4: 0 | KJ4: 0 | KK4: 0 | KL4: 0 | KV4: 700 | LO4: 658 | LP4: 658 | LQ4: 658 | LR4: 658 | LS4: 658 | LT4: 658 | LU4: 658 | LV4: 658 | LW4: 658 | LX4: 658 | LY4: 658 | LZ4: 658 | MJ4: 0 | MK4: 0 | ML4: 0 | MM4: 0 | MN4: 0 | MO4: 0 | MP4: 0 | MQ4: 0 | MR4: 0 | MS4: 0 | MT4: 0 | NC4: 4000 | ND4: 4000 | NE4: 4000 | NF4: 4000 | NG4: 4000 | NH4: 4000 | NI4: 4000 | NJ4: 3000 | NK4: 3000 | NL4: 3000 | NM4: 3000 | NN4: 3000 | NX4: 0 | NY4: 0 | NZ4: 0 | OA4: 0 | OB4: 0 | OC4: 0 | OD4: 0 | OE4: 0 | OF4: 0 | OG4: 0 | OH4: 0 | OR4: 0 | OS4: 0 | OT4: 0 | OU4: 0 | OV4: 0 | OW4: 0 | OX4: 0 | OY4: 0 | OZ4: 0 | PA4: 0 | PB4: 0 | QE4: 31411 | QF4: 2142 | QG4: New Regime | QH4: 21424 | QI4: 1242 | QJ4: New Regime | QO4: 3384

Sheet salary
B1: Select Employee▼
A2: =INDEX(data!$A:$A,MATCH(salary!$B$2,data!$B:$B,0)) -> 1 | B2: Pramod Kumar Saini | AA2: =A2 -> 1
B3: =IFERROR(VLOOKUP(A2,pk_Tb,4,0),"") -> ASDFG
B4: Month Year | C4: ------------------Allowances--------------------- | M4: Total Allow | N4: ------------------Deductions--------------------- | X4: Total Dedu | Y4: Net Salary | Z4: TV No
C5: Basic | F5: DA | G5: HRA | H5: CCA | J5: Bonus | K5: ROP | N5: GPF | O5: GPFL | P5: SI | Q5: SIL | R5: GIS | S5: RGHS | T5: LIC | U5: ITAX
B6: 2024-03-01 | C6: 49300 | F6: 24650 | G6: 4437 | M6: =SUM(C6:J6)+L6-K6 -> 78387 | N6: 2850 | P6: 3000 | S6: 658 | X6: =SUM(N6:W6) -> 6508 | Y6: =M6-X6 -> 71879
B7: 2024-04-01 | C7: 49300 | D7: =D6 -> 0 | E7: =E6 -> 0 | F7: 24650 | G7: 4437 | H7: =H6 -> 0 | I7: =I6 -> 0 | L7: =L6 -> 0 | M7: =SUM(C7:J7)+L7-K7 -> 78387 | N7: 2850 | O7: =O6 -> 0 | P7: 3000 | Q7: =Q6 -> 0 | R7: 700 | S7: 658 | T7: =T6 -> 0 | U7: =U6 -> 0 | V7: =V6 -> 0 | W7: =W6 -> 0 | X7: =SUM(N7:W7) -> 7208 | Y7: =M7-X7 -> 71179
B8: 2024-05-01 | C8: 49300 | D8: =D7 -> 0 | E8: =E7 -> 0 | F8: 24650 | G8: 4437 | H8: =H7 -> 0 | I8: =I7 -> 0 | L8: =L7 -> 0 | M8: 78387 | N8: 2850 | O8: =O7 -> 0 | P8: 3000 | Q8: =Q7 -> 0 | S8: 658 | T8: =T7 -> 0 | U8: =U7 -> 0 | V8: =V7 -> 0 | W8: =W7 -> 0 | X8: 6508 | Y8: 71879
B9: 2024-06-01 | C9: 49300 | D9: 0 | E9: 0 | F9: 24650 | G9: 4437 | H9: 0 | I9: 0 | L9: 0 | M9: 78387 | N9: 2850 | O9: 0 | P9: 3000 | Q9: 0 | S9: 658 | T9: 0 | U9: 0 | V9: 0 | W9: 0 | X9: 6508 | Y9: 71879
B10: 2024-07-01 | C10: 50800 | D10: 0 | E10: 0 | F10: 25400 | G10: 4572 | H10: 0 | I10: 0 | L10: 0 | M10: 80772 | N10: 2850 | O10: 0 | P10: 3000 | Q10: 0 | S10: 658 | T10: 0 | U10: 0 | V10: 0 | W10: 0 | X10: 6508 | Y10: 74264
B11: 2024-08-01 | C11: 50800 | D11: 0 | E11: 0 | F11: 25400 | G11: 4572 | H11: 0 | I11: 0 | L11: 0 | M11: 80772 | N11: 2850 | O11: 0 | P11: 3000 | Q11: 0 | S11: 658 | T11: 0 | U11: 0 | V11: 0 | W11: 0 | X11: 6508 | Y11: 74264
B12: 2024-09-01 | C12: 50800 | D12: 0 | E12: 0 | F12: 25400 | G12: 4572 | H12: 0 | I12: 0 | L12: 0 | M12: 80772 | N12: 2850 | O12: 0 | P12: 3000 | Q12: 0 | S12: 658 | T12: 0 | U12: 0 | V12: 0 | W12: 0 | X12: 6508 | Y12: 74264
B13: 2024-10-01 | C13: 50800 | D13: 0 | E13: 0 | F13: 25400 | G13: 4572 | H13: 0 | I13: 0 | L13: 0 | M13: 80772 | N13: 2850 | O13: 0 | P13: 3000 | Q13: 0 | S13: 658 | T13: 0 | U13: 0 | V13: 0 | W13: 0 | X13: 6508 | Y13: 74264
B14: 2024-11-01 | C14: 50800 | D14: 0 | E14: 0 | F14: 26924 | G14: 5080 | H14: 0 | I14: 0 | L14: 0 | M14: 82804 | N14: 2850 | O14: 0 | P14: 3000 | Q14: 0 | S14: 658 | T14: 0 | U14: 0 | V14: 0 | W14: 0 | X14: 6508 | Y14: 76296
B15: 2024-12-01 | C15: 50800 | D15: 0 | E15: 0 | F15: 26924 | G15: 5080 | H15: 0 | I15: 0 | L15: 0 | M15: 82804 | N15: 2850 | O15: 0 | P15: 3000 | Q15: 0 | S15: 658 | T15: 0 | U15: 0 | V15: 0 | W15: 0 | X15: 6508 | Y15: 76296
B16: 2025-01-01 | C16: 50800 | D16: 0 | E16: 0 | F16: 26924 | G16: 5080 | H16: 0 | I16: 0 | L16: 0 | M16: 82804 | N16: 2850 | O16: 0 | P16: 3000 | Q16: 0 | S16: 658 | T16: 0 | U16: 0 | V16: 0 | W16: 0 | X16: 6508 | Y16: 76296
B17: 2025-02-01 | C17: 50800 | D17: 0 | E17: 0 | F17: 26924 | G17: 5080 | H17: 0 | I17: 0 | L17: 0 | M17: 82804 | N17: 2850 | O17: 0 | P17: 3000 | Q17: 0 | S17: 658 | T17: 0 | U17: 0 | V17: 0 | W17: 0 | X17: 6508 | Y17: 76296
B18: DA Arr | F18: 3944 | M18: 3944 | N18: 3944 | X18: 3944 | Y18: 0
B19: DA Arr | F19: 6096 | M19: 6096 | N19: 6096 | X19: 6096 | Y19: 0
B20: HRA Arr | G20: 0 | M20: 0 | X20: 0 | Y20: 0
B21: Surrender | C21: 0 | F21: 0 | M21: 0 | X21: 0 | Y21: 0
B22: Bonus | J22: 6774 | M22: 6774 | N22: 1694 | X22: 1694 | Y22: 5080
B23: Arrear | M23: 0 | X23: 0 | Y23: 0
B24: Arrear | M24: 0 | X24: 0 | Y24: 0
B25: Arrear | M25: 0 | X25: 0 | Y25: 0
B26: Total | C26: =SUM(C6:C25) -> 603600 | D26: =SUM(D6:D25) -> 0 | E26: 0 | F26: 317936 | G26: 56356 | H26: 0 | I26: 0 | J26: 6774 | K26: 0 | L26: 0 | M26: 984666 | N26: 45934 | O26: 0 | P26: 36000 | Q26: 0 | R26: 700 | S26: 7896 | T26: 0 | U26: 0 | V26: 0 | W26: 0 | X26: 90530 | Y26: 894136

Sheet printF
B1: Annual Salary Statement of the Financial Year 2024-25 | AB1: =INDEX(data!$A:$A,MATCH(printF!$AC$1,data!$B:$B,0)) -> 1 | AC1: Pramod Kumar Saini | BZ1: 2024-01-01 | CA1: 50 | CB1: 46 | CC1: 9 | CD1: 9 | SA1: Designation | SB1: Posting Place
C2: Employee Name : | G2: =VLOOKUP($AB$1,pk_Tb,2,0) -> Pramod Kumar Saini | O2: Employee Desig. : | S2: =VLOOKUP($AB$1,pk_Tb,3,0) -> Teacher | BZ2: 2024-02-01 | CA2: 50 | CB2: 46 | CC2: 9 | CD2: 9 | SA2: Principal | SB2: GSSS Malutana
C3: Employee PAN : | G3: =VLOOKUP($AB$1,pk_Tb,4,0) -> ASDFG | O3: DDO Office : | S3: =VLOOKUP($AB$1,pk_Tb,5,0) -> GSSS Malutana | BZ3: 2024-03-01 | CA3: 50 | CB3: 50 | CC3: 9 | CD3: 9 | SA3: Vice Principal | SB3: MGGS Bandrol
B4: Month Year | C4: ------------------Allowances--------------------- | M4: Gross Amount | N4: ------------------Deductions--------------------- | X4: Total Dedu | Y4: Net Amount | Z4: TV No | AX4: Pramod Kumar Saini | BI4: 50 | BJ4: 46 | BK4: =BI4-BJ4 -> 4 | BL4: =ROUND(AZ6*BK4/100,0) -> 1972 | BM4: 9 | BN4: 9 | BO4: =BM4-BN4 -> 0 | BP4: =ROUND(AZ6*BO4/100,) -> 0 | BZ4: 2024-04-01 | CA4: 50 | CB4: 50 | CC4: 9 | CD4: 9 | SA4: Lecturer | SB4: GGUPS Malutana
C5: Basic | F5: DA | G5: HRA | H5: CCA | J5: Bonus | K5: ROP | N5: GPF | O5: GPFL | P5: SI | Q5: SIL | R5: GIS | S5: RGHS | T5: LIC | U5: ITAX | AX5: =INDEX(data!A:A,MATCH(printF!AX4,data!B:B,0)) -> 1 | BI5: 50 | BJ5: 46 | BK5: =BI5-BJ5 -> 4 | BL5: =ROUND(AZ6*BK5/100,0) -> 1972 | BM5: 9 | BN5: 9 | BO5: =BM5-BN5 -> 0 | BP5: =ROUND(AZ6*BO5/100,) -> 0 | BZ5: 2024-05-01 | CA5: 50 | CB5: 50 | CC5: 9 | CD5: 9 | SA5: Sr Teacher | SB5: GPS Khatiyon Ki Dhani
B6: 2024-03-01 | C6: =VLOOKUP($AB$1,pk_Tb,AB6,0) -> 49300 | D6: =VLOOKUP($AB$1,pk_Tb,AC6,0) -> 0 | E6: =VLOOKUP($AB$1,pk_Tb,AD6,0) -> 0 | F6: =VLOOKUP($AB$1,pk_Tb,AE6,0) -> 24650 | G6: =VLOOKUP($AB$1,pk_Tb,AF6,0) -> 4437 | H6: =VLOOKUP($AB$1,pk_Tb,AG6,0) -> 0 | I6: =VLOOKUP($AB$1,pk_Tb,AH6,0) -> 0 | J6: =VLOOKUP($AB$1,pk_Tb,AI6,0) -> 0 | K6: =VLOOKUP($AB$1,pk_Tb,AJ6,0) -> 0 | L6: =VLOOKUP($AB$1,pk_Tb,AK6,0) -> 0 | M6: =SUM(C6:J6)+L6-K6 -> 78387 | N6: =VLOOKUP($AB$1,pk_Tb,AL6,0) -> 5000 | O6: =VLOOKUP($AB$1,pk_Tb,AM6,0) -> 0 | P6: =VLOOKUP($AB$1,pk_Tb,AN6,0) -> 7000 | Q6: =VLOOKUP($AB$1,pk_Tb,AO6,0) -> 0 | R6: =VLOOKUP($AB$1,pk_Tb,AP6,0) -> 0 | S6: =VLOOKUP($AB$1,pk_Tb,AQ6,0) -> 658 | T6: =VLOOKUP($AB$1,pk_Tb,AR6,0) -> 0 | U6: =VLOOKUP($AB$1,pk_Tb,AS6,0) -> 4000 | V6: =VLOOKUP($AB$1,pk_Tb,AT6,0) -> 0 | W6: =VLOOKUP($AB$1,pk_Tb,AU6,0) -> 0 | X6: =SUM(N6:W6) -> 16658 | Y6: =M6-X6 -> 61729 | Z6: =VLOOKUP($AB$1,pk_Tb,AV6,0) -> 0 | AB6: 27 | AC6: =AB6+20 -> 47 | AD6: =AC6+20 -> 67 | AE6: =AD6+20 -> 87 | AF6: 107 | AG6: 127 | AH6: 147 | AI6: 167 | AJ6: 187 | AK6: 207 | AL6: 227 | AM6: 247 | AN6: 267 | AO6: 287 | AP6: 307 | AQ6: 327 | AR6: 347 | AS6: 367 | AT6: 387 | AU6: 407 | AV6: =AU6+20 -> 427 | AW6: 3 | AX6: =IFERROR(VLOOKUP($AX$5,pk_Tb,1,0),0) -> 1 | AY6: 2024-03-01 | AZ6: =AX11 -> 49300 | BA6: =ROUND(AZ6*BJ6/100,0) -> 24650 | BB6: =ROUND(AZ6*BN6/100,0) -> 4437 | BD6: =IF(AZ6>167000,10500,IF(AZ6>116000,8900,IF(AZ6>80000,6150,IF(AZ6>72000,4800,BH6)))) -> 2850 | BE6: =IF($AZ$6>72000,5000,IF($AZ$6>46500,3000,IF($AZ$6>28500,2200,IF($AZ$6>22000,1200,IF($AZ$6>0,800,0))))) -> 3000 | BG6: =IF(AZ6>54000,875,IF(AZ6>33500,658,IF(AZ6>18000,440,IF(AZ6>0,265,0)))) -> 658 | BH6: =IF(AZ6>62000,4200,IF(AZ6>51500,3575,IF(AZ6>38500,2850,IF(AZ6>28500,2100,IF(AZ6>23100,1625,1450))))) -> 2850 | BI6: 50 | BJ6: 50 | BK6: 0 | BL6: =ROUND(AZ6*BK6/100,0) -> 0 | BM6: 9 | BN6: 9 | BO6: 0 | BP6: =ROUND(AZ6*BO6/100,) -> 0 | BZ6: 2024-06-01 | CA6: 50 | CB6: 50 | CC6: 9 | CD6: 9 | SA6: Teacher | SB6: GPS Rada Binjala
B7: 2024-04-01 | C7: 49300 | D7: 0 | E7: 0 | F7: 24650 | G7: 4437 | H7: 0 | I7: 0 | J7: 0 | K7: 0 | L7: 0 | M7: =SUM(C7:J7)+L7-K7 -> 78387 | N7: 5000 | O7: 0 | P7: 7000 | Q7: 0 | R7: 700 | S7: 658 | T7: 0 | U7: 4000 | V7: 0 | W7: 0 | X7: =SUM(N7:W7) -> 17358 | Y7: =M7-X7 -> 61029 | Z7: 0 | AB7: 28 | AC7: =AB7+20 -> 48 | AD7: 68 | AE7: 88 | AF7: 108 | AG7: 128 | AH7: 148 | AI7: 168 | AJ7: 188 | AK7: 208 | AL7: 228 | AM7: 248 | AN7: 268 | AO7: 288 | AP7: 308 | AQ7: 328 | AR7: 348 | AS7: =AR7+20 -> 368 | AT7: 388 | AU7: 408 | AV7: 428 | AW7: 4 | AX7: =IFERROR(VLOOKUP($AX$5,pk_Tb,2,0),0) -> Pramod Kumar Saini | AY7: 2024-04-01 | AZ7: =AZ6 -> 49300 | BA7: 24650 | BB7: 4437 | BD7: 2850 | BE7: =IF($AZ$6>72000,5000,IF($AZ$6>46500,3000,IF($AZ$6>28500,2200,IF($AZ$6>22000,1200,IF($AZ$6>0,800,0))))) -> 3000 | BF7: =AX15 -> 700 | BG7: =IF(AZ7>54000,875,IF(AZ7>33500,658,IF(AZ7>18000,440,IF(AZ7>0,265,0)))) -> 658 | BH7: 2850 | BI7: 50 | BJ7: 50 | BK7: 0 | BL7: 0 | BM7: 9 | BN7: 9 | BO7: 0 | BP7: 0 | BZ7: 2024-07-01 | CA7: 53 | CB7: 50 | CC7: 9 | CD7: 9 | SA7: PET III | SB7: GPS Guwara Hanuman
B8: 2024-05-01 | C8: 49300 | D8: 0 | E8: 0 | F8: 24650 | G8: 4437 | H8: 0 | I8: 0 | J8: 0 | K8: 0 | L8: 0 | M8: 78387 | N8: 5000 | O8: 0 | P8: 7000 | Q8: 0 | R8: 0 | S8: 658 | T8: 0 | U8: 4000 | V8: 0 | W8: 0 | X8: 16658 | Y8: 61729 | Z8: 0 | AB8: 29 | AC8: 49 | AD8: 69 | AE8: 89 | AF8: 109 | AG8: 129 | AH8: 149 | AI8: 169 | AJ8: 189 | AK8: 209 | AL8: 229 | AM8: 249 | AN8: 269 | AO8: 289 | AP8: 309 | AQ8: 329 | AR8: 349 | AS8: 369 | AT8: 389 | AU8: 409 | AV8: 429 | AW8: 5 | AX8: =IFERROR(VLOOKUP($AX$5,pk_Tb,3,0),0) -> Teacher | AY8: 2024-05-01 | AZ8: =AZ7 -> 49300 | BA8: 24650 | BB8: 4437 | BD8: 2850 | BE8: 3000 | BG8: 658 | BH8: 2850 | BI8: 50 | BJ8: 50 | BK8: 0 | BL8: 0 | BM8: 9 | BN8: 9 | BO8: 0 | BP8: 0 | BZ8: 2024-08-01 | CA8: 53 | CB8: 50 | CC8: 9 | CD8: 9 | SA8: Prabodhak | SB8: GPS Bali Ki Dhani
B9: 2024-06-01 | C9: 49300 | D9: 0 | E9: 0 | F9: 24650 | G9: 4437 | H9: 0 | I9: 0 | J9: 0 | K9: 0 | L9: 0 | M9: 78387 | N9: 5000 | O9: 0 | P9: 7000 | Q9: 0 | R9: 0 | S9: 658 | T9: 0 | U9: 4000 | V9: 0 | W9: 0 | X9: 16658 | Y9: 61729 | Z9: 0 | AB9: 30 | AC9: 50 | AD9: 70 | AE9: 90 | AF9: 110 | AG9: 130 | AH9: 150 | AI9: 170 | AJ9: 190 | AK9: 210 | AL9: 230 | AM9: 250 | AN9: 270 | AO9: 290 | AP9: 310 | AQ9: 330 | AR9: 350 | AS9: 370 | AT9: 390 | AU9: 410 | AV9: 430 | AW9: 6 | AX9: =IFERROR(VLOOKUP($AX$5,pk_Tb,4,0),0) -> ASDFG | AY9: 2024-06-01 | AZ9: =AZ8 -> 49300 | BA9: 24650 | BB9: 4437 | BD9: 2850 | BE9: 3000 | BG9: 658 | BH9: 2850 | BI9: 50 | BJ9: 50 | BK9: 0 | BL9: 0 | BM9: 9 | BN9: 9 | BO9: 0 | BP9: 0 | BZ9: 2024-09-01 | CA9: 53 | CB9: 50 | CC9: 9 | CD9: 9 | SA9: Sr Assistant | SB9: MGGS Dehra
B10: 2024-07-01 | C10: 50800 | D10: 0 | E10: 0 | F10: 25400 | G10: 4572 | H10: 0 | I10: 0 | J10: 0 | K10: 0 | L10: 0 | M10: 80772 | N10: 5000 | O10: 0 | P10: 7000 | Q10: 0 | R10: 0 | S10: 658 | T10: 0 | U10: 4000 | V10: 0 | W10: 0 | X10: 16658 | Y10: 64114 | Z10: 0 | AB10: 31 | AC10: 51 | AD10: 71 | AE10: 91 | AF10: 111 | AG10: 131 | AH10: 151 | AI10: 171 | AJ10: 191 | AK10: 211 | AL10: 231 | AM10: 251 | AN10: 271 | AO10: 291 | AP10: 311 | AQ10: 331 | AR10: 351 | AS10: 371 | AT10: 391 | AU10: 411 | AV10: 431 | AW10: 7 | AX10: =IFERROR(VLOOKUP($AX$5,pk_Tb,5,0),0) -> GSSS Malutana | AY10: 2024-07-01 | AZ10: =IF(AX12=AW10,MROUND(AZ9*103%,100),AZ9) -> 50800 | BA10: 25400 | BB10: 4572 | BD10: 2850 | BE10: 3000 | BG10: 658 | BH10: 2850 | BI10: 53 | BJ10: 50 | BK10: 3 | BL10: 1524 | BM10: 9 | BN10: 9 | BO10: 0 | BP10: 0 | BZ10: 2024-10-01 | CA10: 53 | CB10: 50 | CC10: 9 | CD10: 9 | SA10: Jr Assistant | SB10: AddNew3
B11: 2024-08-01 | C11: 50800 | D11: 0 | E11: 0 | F11: 25400 | G11: 4572 | H11: 0 | I11: 0 | J11: 0 | K11: 0 | L11: 0 | M11: 80772 | N11: 5000 | O11: 0 | P11: 7000 | Q11: 0 | R11: 0 | S11: 658 | T11: 0 | U11: 4000 | V11: 0 | W11: 0 | X11: 16658 | Y11: 64114 | Z11: 0 | AB11: 32 | AC11: 52 | AD11: 72 | AE11: 92 | AF11: 112 | AG11: 132 | AH11: 152 | AI11: 172 | AJ11: 192 | AK11: 212 | AL11: 232 | AM11: 252 | AN11: 272 | AO11: 292 | AP11: 312 | AQ11: 332 | AR11: 352 | AS11: 372 | AT11: 392 | AU11: 412 | AV11: 432 | AW11: 8 | AX11: =IFERROR(VLOOKUP($AX$5,pk_Tb,6,0),0) -> 49300 | AY11: 2024-08-01 | AZ11: =AZ10 -> 50800 | BA11: 25400 | BB11: 4572 | BD11: 2850 | BE11: 3000 | BG11: 658 | BH11: 2850 | BI11: 53 | BJ11: 50 | BK11: 3 | BL11: 1524 | BM11: 9 | BN11: 9 | BO11: 0 | BP11: 0 | BZ11: 2024-11-01 | CA11: 53 | CB11: 53 | CC11: 10 | CD11: 10 | SA11: BCI | SB11: AddNew2
B12: 2024-09-01 | C12: 50800 | D12: 0 | E12: 0 | F12: 25400 | G12: 4572 | H12: 0 | I12: 0 | J12: 0 | K12: 0 | L12: 0 | M12: 80772 | N12: 5000 | O12: 0 | P12: 7000 | Q12: 0 | R12: 0 | S12: 658 | T12: 0 | U12: 4000 | V12: 0 | W12: 0 | X12: 16658 | Y12: 64114 | Z12: 0 | AB12: 33 | AC12: 53 | AD12: 73 | AE12: 93 | AF12: 113 | AG12: 133 | AH12: 153 | AI12: 173 | AJ12: 193 | AK12: 213 | AL12: 233 | AM12: 253 | AN12: 273 | AO12: 293 | AP12: 313 | AQ12: 333 | AR12: 353 | AS12: 373 | AT12: 393 | AU12: 413 | AV12: 433 | AW12: 9 | AX12: =IFERROR(VLOOKUP($AX$5,pk_Tb,7,0),0) -> 7 | AY12: 2024-09-01 | AZ12: =AZ11 -> 50800 | BA12: 25400 | BB12: 4572 | BD12: 2850 | BE12: 3000 | BG12: 658 | BH12: 2850 | BI12: 53 | BJ12: 50 | BK12: 3 | BL12: 1524 | BM12: 9 | BN12: 9 | BO12: 0 | BP12: 0 | BZ12: 2024-12-01 | CA12: 53 | CB12: 53 | CC12: 10 | CD12: 10 | SA12: Nil1
B13: 2024-10-01 | C13: 50800 | D13: 0 | E13: 0 | F13: 25400 | G13: 4572 | H13: 0 | I13: 0 | J13: 0 | K13: 0 | L13: 0 | M13: 80772 | N13: 2850 | O13: 0 | P13: 7000 | Q13: 0 | R13: 0 | S13: 658 | T13: 0 | U13: 3000 | V13: 0 | W13: 0 | X13: 13508 | Y13: 67264 | Z13: 0 | AB13: 34 | AC13: 54 | AD13: 74 | AE13: 94 | AF13: 114 | AG13: 134 | AH13: 154 | AI13: 174 | AJ13: 194 | AK13: 214 | AL13: 234 | AM13: 254 | AN13: 274 | AO13: 294 | AP13: 314 | AQ13: 334 | AR13: 354 | AS13: 374 | AT13: 394 | AU13: 414 | AV13: 434 | AW13: 10 | AX13: =IFERROR(VLOOKUP($AX$5,pk_Tb,8,0),0) -> 0 | AY13: 2024-10-01 | AZ13: =AZ12 -> 50800 | BA13: 25400 | BB13: 4572 | BD13: 2850 | BE13: 3000 | BG13: 658 | BH13: 2850 | BI13: 53 | BJ13: 50 | BK13: 3 | BL13: 1524 | BM13: 9 | BN13: 9 | BO13: 0 | BP13: 0 | BZ13: 2025-01-01 | CA13: 53 | CB13: 53 | CC13: 10 | CD13: 10 | SA13: Nil2
B14: 2024-11-01 | C14: 50800 | D14: 0 | E14: 0 | F14: 26924 | G14: 5080 | H14: 0 | I14: 0 | J14: 0 | K14: 0 | L14: 0 | M14: 82804 | N14: 2850 | O14: 0 | P14: 7000 | Q14: 0 | R14: 0 | S14: 658 | T14: 0 | U14: 3000 | V14: 0 | W14: 0 | X14: 13508 | Y14: 69296 | Z14: 0 | AB14: 35 | AC14: 55 | AD14: 75 | AE14: 95 | AF14: 115 | AG14: 135 | AH14: 155 | AI14: 175 | AJ14: 195 | AK14: 215 | AL14: 235 | AM14: 255 | AN14: 275 | AO14: 295 | AP14: 315 | AQ14: 335 | AR14: 355 | AS14: 375 | AT14: 395 | AU14: 415 | AV14: 435 | AW14: 11 | AX14: =IFERROR(VLOOKUP($AX$5,pk_Tb,9,0),0) -> 12 | AY14: 2024-11-01 | AZ14: =AZ13 -> 50800 | BA14: 26924 | BB14: 5080 | BD14: 2850 | BE14: 3000 | BG14: 658 | BH14: 2850 | BI14: 53 | BJ14: 53 | BK14: 0 | BL14: 0 | BM14: 10 | BN14: 10 | BO14: 0 | BP14: 0 | BZ14: 2025-02-01 | CA14: 53 | CB14: 53 | CC14: 10 | CD14: 10 | SA14: Nil3
B15: 2024-12-01 | C15: 50800 | D15: 0 | E15: 0 | F15: 26924 | G15: 5080 | H15: 0 | I15: 0 | J15: 0 | K15: 0 | L15: 0 | M15: 82804 | N15: 2850 | O15: 0 | P15: 7000 | Q15: 0 | R15: 0 | S15: 658 | T15: 0 | U15: 3000 | V15: 0 | W15: 0 | X15: 13508 | Y15: 69296 | Z15: 0 | AB15: 36 | AC15: 56 | AD15: 76 | AE15: 96 | AF15: 116 | AG15: 136 | AH15: 156 | AI15: 176 | AJ15: 196 | AK15: 216 | AL15: 236 | AM15: 256 | AN15: 276 | AO15: 296 | AP15: 316 | AQ15: 336 | AR15: 356 | AS15: 376 | AT15: 396 | AU15: 416 | AV15: 436 | AW15: 12 | AX15: =IFERROR(VLOOKUP($AX$5,pk_Tb,10,0),0) -> 700 | AY15: 2024-12-01 | AZ15: =AZ14 -> 50800 | BA15: 26924 | BB15: 5080 | BD15: 2850 | BE15: 3000 | BG15: 658 | BH15: 2850 | BI15: 53 | BJ15: 53 | BK15: 0 | BL15: 0 | BM15: 10 | BN15: 10 | BO15: 0 | BP15: 0 | SA15: Nil4
B16: 2025-01-01 | C16: 50800 | D16: 0 | E16: 0 | F16: 26924 | G16: 5080 | H16: 0 | I16: 0 | J16: 0 | K16: 0 | L16: 0 | M16: 82804 | N16: 2850 | O16: 0 | P16: 7000 | Q16: 0 | R16: 0 | S16: 658 | T16: 0 | U16: 3000 | V16: 0 | W16: 0 | X16: 13508 | Y16: 69296 | Z16: 0 | AB16: 37 | AC16: 57 | AD16: 77 | AE16: 97 | AF16: 117 | AG16: 137 | AH16: 157 | AI16: 177 | AJ16: 197 | AK16: 217 | AL16: 237 | AM16: 257 | AN16: 277 | AO16: 297 | AP16: 317 | AQ16: 337 | AR16: 357 | AS16: 377 | AT16: 397 | AU16: 417 | AV16: 437 | AW16: 1 | AY16: 2025-01-01 | AZ16: =IF(AX12=AW16,MROUND(AZ15*103%,100),AZ15) -> 50800 | BA16: 26924 | BB16: 5080 | BD16: 2850 | BE16: 3000 | BG16: 658 | BH16: 2850 | BI16: 53 | BJ16: 53 | BK16: 0 | BL16: 0 | BM16: 10 | BN16: 10 | BO16: 0 | BP16: 0 | SA16: Nil5
B17: 2025-02-01 | C17: 50800 | D17: 0 | E17: 0 | F17: 26924 | G17: 5080 | H17: 0 | I17: 0 | J17: 0 | K17: 0 | L17: 0 | M17: 82804 | N17: 2850 | O17: 0 | P17: 7000 | Q17: 0 | R17: 0 | S17: 658 | T17: 0 | U17: 3000 | V17: 0 | W17: 0 | X17: 13508 | Y17: 69296 | Z17: 0 | AB17: 38 | AC17: 58 | AD17: 78 | AE17: 98 | AF17: 118 | AG17: 138 | AH17: 158 | AI17: 178 | AJ17: 198 | AK17: 218 | AL17: 238 | AM17: 258 | AN17: 278 | AO17: 298 | AP17: 318 | AQ17: 338 | AR17: 358 | AS17: 378 | AT17: 398 | AU17: 418 | AV17: 438 | AW17: 2 | AY17: 2025-02-01 | AZ17: =AZ16 -> 50800 | BA17: 26924 | BB17: 5080 | BD17: 2850 | BE17: 3000 | BG17: 658 | BH17: 2850 | BI17: 53 | BJ17: 53 | BK17: 0 | BL17: 0 | BM17: 10 | BN17: 10 | BO17: 0 | BP17: 0 | SA17: Nil6
B18: DA Arr | C18: 0 | D18: 0 | E18: 0 | F18: 3944 | G18: 0 | H18: 0 | I18: 0 | J18: 0 | K18: 0 | L18: 0 | M18: 3944 | N18: 3944 | O18: 0 | P18: 0 | Q18: 0 | R18: 0 | S18: 0 | T18: 0 | U18: 0 | V18: 0 | W18: 0 | X18: 3944 | Y18: 0 | Z18: 0 | AB18: 39 | AC18: 59 | AD18: 79 | AE18: 99 | AF18: 119 | AG18: 139 | AH18: 159 | AI18: 179 | AJ18: 199 | AK18: 219 | AL18: 239 | AM18: 259 | AN18: 279 | AO18: 299 | AP18: 319 | AQ18: 339 | AR18: 359 | AS18: 379 | AT18: 399 | AU18: 419 | AV18: 439 | AY18: DA Arr | BA18: =SUM(BL4:BL9) -> 3944 | BD18: =BA18 -> 3944 | SA18: Nil7
B19: DA Arr | C19: 0 | D19: 0 | E19: 0 | F19: 6096 | G19: 0 | H19: 0 | I19: 0 | J19: 0 | K19: 0 | L19: 0 | M19: 6096 | N19: 6096 | O19: 0 | P19: 0 | Q19: 0 | R19: 0 | S19: 0 | T19: 0 | U19: 0 | V19: 0 | W19: 0 | X19: 6096 | Y19: 0 | Z19: 0 | AB19: 40 | AC19: 60 | AD19: 80 | AE19: 100 | AF19: 120 | AG19: 140 | AH19: 160 | AI19: 180 | AJ19: 200 | AK19: 220 | AL19: 240 | AM19: 260 | AN19: 280 | AO19: 300 | AP19: 320 | AQ19: 340 | AR19: 360 | AS19: 380 | AT19: 400 | AU19: 420 | AV19: 440 | AY19: DA Arr | BA19: =SUM(BL10:BL17) -> 6096 | BD19: =BA19 -> 6096 | SA19: Nil8
B20: HRA Arr | C20: 0 | D20: 0 | E20: 0 | F20: 0 | G20: 0 | H20: 0 | I20: 0 | J20: 0 | K20: 0 | L20: 0 | M20: 0 | N20: 0 | O20: 0 | P20: 0 | Q20: 0 | R20: 0 | S20: 0 | T20: 0 | U20: 0 | V20: 0 | W20: 0 | X20: 0 | Y20: 0 | Z20: 0 | AB20: 41 | AC20: 61 | AD20: 81 | AE20: 101 | AF20: 121 | AG20: 141 | AH20: 161 | AI20: 181 | AJ20: 201 | AK20: 221 | AL20: 241 | AM20: 261 | AN20: 281 | AO20: 301 | AP20: 321 | AQ20: 341 | AR20: 361 | AS20: 381 | AT20: 401 | AU20: 421 | AV20: 441 | AY20: HRA Arr | BB20: =SUM(BP4:BP17) -> 0 | SA20: Nil9
B21: Surrender | C21: 0 | D21: 0 | E21: 0 | F21: 0 | G21: 0 | H21: 0 | I21: 0 | J21: 0 | K21: 0 | L21: 0 | M21: 0 | N21: 0 | O21: 0 | P21: 0 | Q21: 0 | R21: 0 | S21: 0 | T21: 0 | U21: 0 | V21: 0 | W21: 0 | X21: 0 | Y21: 0 | Z21: 0 | AB21: 42 | AC21: 62 | AD21: 82 | AE21: 102 | AF21: 122 | AG21: 142 | AH21: 162 | AI21: 182 | AJ21: 202 | AK21: =AJ21+20 -> 222 | AL21: 242 | AM21: 262 | AN21: 282 | AO21: 302 | AP21: 322 | AQ21: 342 | AR21: 362 | AS21: 382 | AT21: 402 | AU21: 422 | AV21: 442 | AY21: Surrender | AZ21: =IFERROR(ROUND(VLOOKUP(AX13,AW6:BA17,4,0)/2,0),) -> 0 | BA21: =IFERROR(ROUND(VLOOKUP(AX13,AW6:BA17,5,0)/2,0),) -> 0 | SA21: Nil10
B22: Bonus | C22: 0 | D22: 0 | E22: 0 | F22: 0 | G22: 0 | H22: 0 | I22: 0 | J22: 6774 | K22: 0 | L22: 0 | M22: 6774 | N22: 1694 | O22: 0 | P22: 0 | Q22: 0 | R22: 0 | S22: 0 | T22: 0 | U22: 0 | V22: 0 | W22: 0 | X22: 1694 | Y22: 5080 | Z22: 0 | AB22: 43 | AC22: 63 | AD22: =AC22+20 -> 83 | AE22: 103 | AF22: 123 | AG22: 143 | AH22: 163 | AI22: 183 | AJ22: 203 | AK22: 223 | AL22: 243 | AM22: 263 | AN22: 283 | AO22: 303 | AP22: 323 | AQ22: 343 | AR22: 363 | AS22: 383 | AT22: 403 | AU22: 423 | AV22: 443 | AY22: Bonus | BC22: =ROUND((6774/12)*AX14,0) -> 6774 | BD22: =ROUND(BC22*25/100,0) -> 1694
B23: Arrear | C23: 0 | D23: 0 | E23: 0 | F23: 0 | G23: 0 | H23: 0 | I23: 0 | J23: 0 | K23: 0 | L23: 0 | M23: 0 | N23: 0 | O23: 0 | P23: 0 | Q23: 0 | R23: 0 | S23: 0 | T23: 0 | U23: 0 | V23: 0 | W23: 0 | X23: 0 | Y23: 0 | Z23: 0 | AB23: 44 | AC23: 64 | AD23: =AC23+20 -> 84 | AE23: 104 | AF23: 124 | AG23: 144 | AH23: 164 | AI23: 184 | AJ23: 204 | AK23: 224 | AL23: 244 | AM23: 264 | AN23: 284 | AO23: 304 | AP23: 324 | AQ23: 344 | AR23: 364 | AS23: 384 | AT23: 404 | AU23: 424 | AV23: 444 | AY23: Arrear
B24: Arrear | C24: 0 | D24: 0 | E24: 0 | F24: 0 | G24: 0 | H24: 0 | I24: 0 | J24: 0 | K24: 0 | L24: 0 | M24: 0 | N24: 0 | O24: 0 | P24: 0 | Q24: 0 | R24: 0 | S24: 0 | T24: 0 | U24: 0 | V24: 0 | W24: 0 | X24: 0 | Y24: 0 | Z24: 0 | AB24: 45 | AC24: 65 | AD24: =AC24+20 -> 85 | AE24: 105 | AF24: 125 | AG24: 145 | AH24: 165 | AI24: 185 | AJ24: 205 | AK24: 225 | AL24: 245 | AM24: 265 | AN24: 285 | AO24: 305 | AP24: 325 | AQ24: 345 | AR24: 365 | AS24: 385 | AT24: 405 | AU24: 425 | AV24: 445 | AY24: Arrear
B25: Arrear | C25: 0 | D25: 0 | E25: 0 | F25: 0 | G25: 0 | H25: 0 | I25: 0 | J25: 0 | K25: 0 | L25: 0 | M25: 0 | N25: 0 | O25: 0 | P25: 0 | Q25: 0 | R25: 0 | S25: 0 | T25: 0 | U25: 0 | V25: 0 | W25: 0 | X25: 0 | Y25: 0 | Z25: 0 | AB25: 46 | AC25: 66 | AD25: =AC25+20 -> 86 | AE25: 106 | AF25: 126 | AG25: 146 | AH25: 166 | AI25: 186 | AJ25: 206 | AK25: 226 | AL25: 246 | AM25: 266 | AN25: 286 | AO25: 306 | AP25: 326 | AQ25: 346 | AR25: 366 | AS25: 386 | AT25: 406 | AU25: 426 | AV25: 446 | AY25: Arrear
B26: Total | C26: =SUM(C6:C25) -> 603600 | D26: =SUM(D6:D25) -> 0 | E26: 0 | F26: 317936 | G26: 56356 | H26: 0 | I26: 0 | J26: 6774 | K26: 0 | L26: 0 | M26: 984666 | N26: 60984 | O26: 0 | P26: 84000 | Q26: 0 | R26: 700 | S26: 7896 | T26: 0 | U26: 43000 | V26: 0 | W26: 0 | X26: 196580 | Y26: 788086
N28: Employee Signature | W28: DDO Signature

Sheet backE
Y1: 1 | Z1: =IFERROR(VLOOKUP($AA$1,pk_Tb,Y1,0),"") -> 1 | AA1: =printF!AB1 -> 1
B2: Income Tax Calculation for Financial Year 2023-24 Assessment Year 2024-25 | Y2: 2 | Z2: Pramod Kumar Saini
B3: ="Name (Designation) : "&Z2&" ("&Z3&")" -> Name (Designation) : Pramod Kumar Saini (Teacher) | V3: ="PAN : "&Z4 -> PAN : ASDFG | Y3: 3 | Z3: Teacher
B4: ="DDO Office : "&Z5 -> DDO Office : GSSS Malutana | V4: As per Old Tax Regime | Y4: 4 | Z4: ASDFG
B5: 1. | C5: Gross Salary... (Including all allowance u/s 17... i.e. Govt. contribution towards NPS) | V5: =printF!M26 -> 984666 | Y5: 5 | Z5: GSSS Malutana
B6: 2. | C6: HRA exemption as per eligibility u/s 10(13-A) whether living in … Rented House | V6: =IFERROR(MIN(Z11,SUM(salary!G6:G17)),0) -> 56356
B7: 3. | C7: Net Salary [1-2] | W7: =V5-V6 -> 928310
B8: 4. | C8: Standard Deduction u/s 16(ia) | V8: =MAX(MIN(50000,W7),0) -> 50000
B9: 5. | C9: Income chargeable under the head ''Salaries'' [3-4] | W9: =W7-V8 -> 878310
B10: 6. | C10: Interest payable on borrowed capital u/s 24b | V10: =IFERROR(MIN(Z12,200000),0) -> 0
B11: 7. | C11: Interest from saving Account / Deposits / Income tax refund | V11: =Z13 -> 0 | Y11: 11 | Z11: 100000
B12: 8. | C12: Gross Total Income [5+6+7] | W12: =W9+V11-V10 -> 878310 | Y12: 12 | Z12: 0
B13: 9. | C13: Deductions under Chapter VI-A | Y13: 13 | Z13: 0
C14: (a) | D14: 80C Life insurance premia, deferred annuity, contributions to provident fund etc. | V14: =SUM(V15:V18) -> 145684 | Y14: 14 | Z14: 0
D15: (i) | E15: GPF/GPF 2004 | V15: =printF!N26 -> 60984 | Y15: 15 | Z15: 0
D16: (ii) | E16: State Insurance | V16: =printF!P26 -> 84000 | Y16: 16 | Z16: 58834
D17: (iii) | E17: Group Insurance Accidental | V17: =printF!R26 -> 700 | Y17: 17 | Z17: 50000
D18: (iv) | E18: LIC annual premium | V18: =printF!T26 -> 0 | Y18: 18 | Z18: 58834
C19: (b) | D19: Any other deductible total amount u/s 80C, 80CCC & 80CCD(1) | V19: =Z14+Z15+Z16 -> 58834 | Y19: 19 | Z19: 7934
D20: Total deductible amount u/s 80C, 80CCC & 80CCD(1) | V20: =V14+V19 -> 204518 | W20: =MIN((V14+V19),150000) -> 150000 | Y20: 20 | Z20: 0
C21: (c) | D21: 80CCD(1B) Additional contribution towads NPS | V21: =Z17 -> 50000 | W21: =MIN(V21,50000) -> 50000 | Y21: 21 | Z21: 0
C22: (d) | D22: 80CCD(2) Employer contribution towards NPS | V22: =Z18 -> 58834 | W22: =MIN(ROUND(10%*W7,0),V22) -> 58834 | Y22: 22 | Z22: 0
C23: (e) | D23: 80D Deduction in respect of Health Insurance premia | V23: =Z19 -> 7934 | W23: =MIN(75000,V23) -> 7934 | Y23: 23 | Z23: 0
C24: (f) | D24: 80DD Maintenance including medical treatment of a dependent who is a person with disability | V24: =IF(Z20="Below 80%",75000,IF(Z20="80% Or Above",125000,0)) -> 0 | W24: =V24 -> 0 | Y24: 24 | Z24: 0
C25: (g) | D25: 80DDB Medical treatment of specified disease | V25: =Z21 -> 0 | W25: =MIN(100000,V25) -> 0 | Y25: 25 | Z25: 0
C26: (h) | D26: 80E Interest on loan taken for higher education | V26: =Z22 -> 0 | W26: =V26 -> 0 | Y26: 26 | Z26: 0
C27: (j) | D27: 80G Donations to certain funds, charitable institutions, etc. | V27: =Z23 -> 0 | W27: =V27 -> 0
C28: (j) | D28: 80TTA Interest on saving bank Accounts in case of other than Resident senior citizens | V28: =Z24 -> 0 | W28: =MIN(10000,V28,V11) -> 0
C29: (k) | D29: 80U In case of a person with disability | V29: =IF(Z25="Below 80%",75000,IF(Z25="80% Or Above",125000,0)) -> 0 | W29: =V29 -> 0
B30: 10. | C30: Total Deductions under Chapter VI-A | W30: =SUM(W20:W29) -> 266768
B31: 11. | C31: Total Taxable Income [8-10] | W31: =IF(ROUND(W12-W30,-1)<0,0,ROUND(W12-W30,-1)) -> 611540
C32: Tax Calculation Table
C33: Income Slab | I33: Rate | K33: Taxable Income | O33: Tax
C34: Up To ₹ 250000 | I34: Nil | K34: =MAX(IF(W31>=250000,250000,W31),0) -> 250000 | L34: Nil | M34: =MAX(IF($F$31>=250000,250000,$F$31),0) -> 0 | N34: Nil | O34: Nil
C35: ₹ 250001 To ₹ 500000 | I35: 0.05 | K35: =IF(W31>=500000,250000,IF(W31<=250000,0,(W31-K34))) -> 250000 | L35: =ROUND(J35*K35,0) -> 0 | M35: =IF($F$31>=500000,250000,IF($F$31<=250000,0,($F$31-M34))) -> 0 | N35: =ROUND(L35*M35,0) -> 0 | O35: =ROUND(I35*K35,0) -> 12500
C36: ₹ 500001 To ₹ 1000000 | I36: 0.2 | K36: =IF(W31>=1000000,500000,IF(W31<=500000,0,(W31-K34-K35))) -> 111540 | O36: =ROUND(I36*K36,0) -> 22308
C37: Above ₹ 1000000 | I37: 0.3 | K37: =IF(W31<=1000000,0,(W31-1000000)) -> 0 | O37: =ROUND(I37*K37,0) -> 0 | S37: =W31=SUM(K34:N37) -> TRUE
B38: 12. | C38: Tax Payable on Total Income | W38: =SUM(O35:R37) -> 34808
B39: 13. | C39: Rebate u/s 87A | W39: =IF(W31>=500000,0,MIN(12500,W38)) -> 0
B40: 14. | C40: Tax Payable after Rebate [12-13] | W40: =W38-W39 -> 34808
B41: 15. | C41: Health and Education Cess | W41: =ROUND(4%*W40,0) -> 1392
B42: 16. | C42: Total Tax & Cess [14+15] | W42: =W40+W41 -> 36200
B43: 17. | C43: Relief u/s 89 | W43: =Z26 -> 0
B44: 18. | C44: Balance Tax after Relief [16-17] | W44: =W42-W43 -> 36200
B45: 19. | C45: Total Taxes deducted at Sources | W45: =printF!U26 -> 43000
B46: 20. | C46: Amount Payable [18-19] | W46: =MAX(0,(W44-W45)) -> 0
B47: 21. | C47: Refund [19-18] | W47: =MAX(0,(W45-W44)) -> 6800
V49: Employee Signature

Sheet backN
B2: Income Tax Calculation for Financial Year 2024-25 Assessment Year 2025-26
B3: =backE!B3 -> Name (Designation) : Pramod Kumar Saini (Teacher) | V3: =backE!V3 -> PAN : ASDFG
B4: =backE!B4 -> DDO Office : GSSS Malutana | V4: As per New Tax Regime
B5: 1. | C5: Gross Salary... (Including all allowance u/s 17... i.e. Govt. contribution towards NPS) | V5: =printF!M26 -> 984666
B6: 2. | C6: HRA exemption as per eligibility u/s 10(13-A) whether living in … Rented House | V6: 0
B7: 3. | C7: Net Salary [1-2] | W7: =V5-V6 -> 984666
B8: 4. | C8: Standard Deduction u/s 16(ia) | V8: =MAX(MIN(W7,75000),0) -> 75000
B9: 5. | C9: Income chargeable under the head ''Salaries'' [3-4] | W9: =W7-V8 -> 909666
B10: 6. | C10: Interest payable on borrowed capital u/s 24b | V10: 0
B11: 7. | C11: Interest from saving Account / Deposits / Income tax refund | V11: =backE!V11 -> 0
B12: 8. | C12: Gross Total Income [5+6+7] | W12: =W9+V11 -> 909666
B13: 9. | C13: Deductions under Chapter VI-A
C14: (a) | D14: 80C Life insurance premia, deferred annuity, contributions to provident fund etc. | V14: =SUM(V15:V19) -> 0
D15: (i) | E15: GPF/GPF 2004 | V15: 0
D16: (ii) | E16: State Insurance | V16: 0
D17: (iii) | E17: Group Insurance Accidental | V17: 0
D18: (iv) | E18: LIC annual premium | V18: 0
C19: (b) | D19: Any other deductible total amount u/s 80C, 80CCC & 80CCD(1) | V19: 0
D20: Total deductible amount u/s 80C, 80CCC & 80CCD(1) | V20: =V19+V14 -> 0 | W20: 0
C21: (c) | D21: 80CCD(1B) Additional contribution towads NPS | V21: 0 | W21: 0
C22: (d) | D22: 80CCD(2) Employer contribution towards NPS | V22: =backE!V22 -> 58834 | W22: =MIN(ROUND(W7*10%,0),V22) -> 58834
C23: (e) | D23: 80D Deduction in respect of Health Insurance premia | V23: 0 | W23: 0
C24: (f) | D24: 80DD Maintenance including medical treatment of a dependent who is a person with disability | V24: 0 | W24: 0
C25: (g) | D25: 80DDB Medical treatment of specified disease | V25: 0 | W25: 0
C26: (h) | D26: 80E Interest on loan taken for higher education | V26: 0 | W26: 0
C27: (i) | D27: 80G Donations to certain funds, charitable institutions, etc. | V27: 0 | W27: 0
C28: (j) | D28: 80TTA Interest on saving bank Accounts in case of other than Resident senior citizens | V28: 0 | W28: 0
C29: (k) | D29: 80U In case of a person with disability | V29: 0 | W29: 0
B30: 10. | C30: Total Deductions under Chapter VI-A | W30: =SUM(W20:W29) -> 58834
B31: 11. | C31: Total Taxable Income [8-10] | W31: =IF(ROUND(W12-W30,-1)<0,0,ROUND(W12-W30,-1)) -> 850830
C32: Tax Calculation Table
C33: Income Slab | I33: Rate | K33: Taxable Income | O33: Tax
C34: Up To ₹ 300000 | I34: Nil | K34: =MAX(IF(W31>=300000,300000,W31),0) -> 300000 | L34: Nil | M34: =MAX(IF($F$31>=250000,250000,$F$31),0) -> 0 | N34: Nil | O34: Nil
C35: ₹ 300001 To ₹ 700000 | I35: 0.05 | K35: =IF(W31>=700000,400000,IF(W31<=300000,0,(W31-K34))) -> 400000 | L35: =ROUND(J35*K35,0) -> 0 | M35: =IF($F$31>=500000,250000,IF($F$31<=250000,0,($F$31-M34))) -> 0 | N35: =ROUND(L35*M35,0) -> 0 | O35: =ROUND(I35*K35,0) -> 20000
C36: ₹ 700001 To ₹ 1000000 | I36: 0.1 | K36: =IF(W31>=1000000,300000,IF(W31<=700000,0,(W31-K34-K35))) -> 150830 | L36: =ROUND(J36*K36,0) -> 0 | M36: =IF($F$31>=1000000,500000,IF($F$31<=500000,0,($F$31-M34-M35))) -> 0 | N36: =ROUND(L36*M36,0) -> 0 | O36: =ROUND(I36*K36,0) -> 15083
C37: ₹ 1000001 To ₹ 1200000 | I37: 0.15 | K37: =IF(W31>=1200000,200000,IF(W31<=1000000,0,(W31-K34-K35-K36))) -> 0 | O37: =ROUND(I37*K37,0) -> 0
C38: ₹ 1200001 To ₹ 1500000 | I38: 0.2 | K38: =IF(W31>=1500000,300000,IF(W31<=1200000,0,(W31-K34-K35-K36-K37))) -> 0 | O38: =ROUND(I38*K38,0) -> 0
C39: Above ₹ 1500000 | I39: 0.3 | K39: =IF(W31<=1500000,0,(W31-1500000)) -> 0 | L39: =ROUND(J39*K39,0) -> 0 | M39: =IF($F$31<=1000000,0,($F$31-1000000)) -> 0 | N39: =ROUND(L39*M39,0) -> 0 | O39: =ROUND(I39*K39,0) -> 0 | S39: =W31=SUM(K34:N39) -> TRUE
B40: 12. | C40: Tax Payable on Total Income | W40: =SUM(O35:R39) -> 35083
B41: 13. | C41: Rebate u/s 87A with Marginal Relief u/s 115BAC(1A) | W41: =IF(W31>=700000,0,MIN(25000,W40))+IF(W31>=722224,0,IF(W31<=700000,0,W40-(W31-700000))) -> 0
B42: 14. | C42: Tax Payable after Rebate [12-13] | W42: =W40-W41 -> 35083
B43: 15. | C43: Health and Education Cess | W43: =ROUND(4%*W42,0) -> 1403
B44: 16. | C44: Total Tax & Cess [14+15] | W44: =W42+W43 -> 36486
B45: 17. | C45: Relief u/s 89 | W45: =backE!W43 -> 0
B46: 18. | C46: Balance Tax after Relief [16-17] | W46: =W44-W45 -> 36486
B47: 19. | C47: Total Taxes deducted at Sources | W47: =backE!W45 -> 43000
B48: 20. | C48: Amount Payable [18-19] | W48: =MAX(0,(W46-W47)) -> 0
B49: 21. | C49: Refund [19-18] | W49: =MAX(0,(W47-W46)) -> 6514
V51: Employee Signature

Sheet compEN
B2: Income Tax Camparison for FY 2024-25 Asessment Year 2025-26
B3: ="Emp Name : "&backE!Z2 -> Emp Name : Pramod Kumar Saini | M3: ="Emp Desig. : "&backE!Z3 -> Emp Desig. : Teacher | V3: As per Tax Old Regime▼ | W3: As per Tax New Regime▼
B4: ="Emp PAN : "&backE!Z4 -> Emp PAN : ASDFG | M4: ="DDO Office : "&backE!Z5 -> DDO Office : GSSS Malutana
B5: 1. | C5: Gross Salary... (Including all allowance u/s 17... i.e. Govt. contribution towards NPS) | V5: =backE!V5 -> 984666 | W5: =backN!V5 -> 984666
B6: 2. | C6: HRA exemption as per eligibility u/s 10(13-A) whether living in … Rented House | V6: =backE!V6 -> 56356 | W6: 0
B7: 3. | C7: Net Salary [1-2] | V7: =V5-V6 -> 928310 | W7: =W5-W6 -> 984666
B8: 4. | C8: Standard Deduction u/s 16(ia) | V8: =backE!V8 -> 50000 | W8: =backN!V8 -> 75000
B9: 5. | C9: Income chargeable under the head ''Salaries'' [3-4] | V9: =V7-V8 -> 878310 | W9: =W7-W8 -> 909666
B10: 6. | C10: Interest payable on borrowed capital u/s 24b | V10: =backE!V10 -> 0 | W10: 0
B11: 7. | C11: Interest from saving Account / Deposits / Income tax refund | V11: =backE!V11 -> 0 | W11: =V11 -> 0
B12: 8. | C12: Gross Total Income [5+6+7] | V12: =V9+V11-V10 -> 878310 | W12: =W9+W11 -> 909666
B13: 9. | C13: Deductions under Chapter VI-A
C14: (a) | D14: 80C Life insurance premia, deferred annuity, contributions to provident fund etc. | V14: =SUM(V15:V18) -> 145684 | W14: 0
D15: (i) | E15: GPF/GPF 2004 | V15: =backE!V15 -> 60984 | W15: 0
D16: (ii) | E16: State Insurance | V16: =backE!V16 -> 84000 | W16: 0
D17: (iii) | E17: Group Insurance Accidental | V17: =backE!V17 -> 700 | W17: 0
D18: (iv) | E18: LIC annual premium | V18: =backE!V18 -> 0 | W18: 0
C19: (b) | D19: Any other deductible total amount u/s 80C, 80CCC & 80CCD(1) | V19: =backE!V19 -> 58834 | W19: 0
D20: Total deductible amount u/s 80C, 80CCC & 80CCD(1) | V20: =backE!W20 -> 150000 | W20: 0
C21: (c) | D21: 80CCD(1B) Additional contribution towads NPS | V21: =backE!W21 -> 50000 | W21: 0
C22: (d) | D22: 80CCD(2) Employer contribution towards NPS | V22: =backE!W22 -> 58834 | W22: =V22 -> 58834
C23: (e) | D23: 80D Deduction in respect of Health Insurance premia | V23: =backE!W23 -> 7934 | W23: 0
C24: (f) | D24: 80DD Maintenance including medical treatment of a dependent who is a person with disability | V24: =backE!W24 -> 0 | W24: 0
C25: (g) | D25: 80DDB Medical treatment of specified disease | V25: =backE!W25 -> 0 | W25: 0
C26: (h) | D26: 80E Interest on loan taken for higher education | V26: =backE!W26 -> 0 | W26: 0
C27: (j) | D27: 80G Donations to certain funds, charitable institutions, etc. | V27: =backE!W27 -> 0 | W27: 0
C28: (j) | D28: 80TTA Interest on saving bank Accounts in case of other than Resident senior citizens | V28: =backE!W28 -> 0 | W28: 0
C29: (k) | D29: 80U In case of a person with disability | V29: =backE!W29 -> 0 | W29: 0
B30: 10. | C30: Total Deductions under Chapter VI-A | V30: =SUM(V20:V29) -> 266768 | W30: =SUM(W20:W29) -> 58834
B31: 11. | C31: Total Taxable Income [8-10] | V31: =ROUND(V12-V30,-1) -> 611540 | W31: =ROUND(W12-W30,-1) -> 850830
C32: Tax Calculation Table (Old Regime) | L32: Tax Calculation Table (New Regime)
C33: Income Slab | G33: Rate | H33: Income | J33: Tax | L33: Income Slab | P33: Rate | Q33: Income | S33: Tax | X33: =SUM(H34:I37)=V31 -> TRUE | Y33: =SUM(Q34:R39)=W31 -> TRUE
C34: Up To ₹ 250000 | G34: Nil | H34: =MAX(IF(V31>=250000,250000,V31),0) -> 250000 | J34: Nil | L34: Up To ₹ 300000 | P34: Nil | Q34: =MAX(IF(W31>=300000,300000,W31),0) -> 300000 | S34: Nil
C35: ₹ 250001 To ₹ 500000 | G35: 0.05 | H35: =IF(V31>=500000,250000,IF(V31<=250000,0,(V31-250000))) -> 250000 | J35: =ROUND(G35*H35,0) -> 12500 | L35: ₹ 300001 To ₹ 700000 | P35: 0.05 | Q35: =IF(W31>=700000,400000,IF(W31<=300000,0,(W31-Q34))) -> 400000 | S35: =ROUND(P35*Q35,0) -> 20000
C36: ₹ 500001 To ₹ 1000000 | G36: 0.2 | H36: =IF(V31>=1000000,500000,IF(V31<=500000,0,(V31-H34-H35))) -> 111540 | J36: =ROUND(G36*H36,0) -> 22308 | L36: ₹ 700001 To ₹ 1000000 | P36: 0.1 | Q36: =IF(W31>=1000000,300000,IF(W31<=700000,0,(W31-Q34-Q35))) -> 150830 | S36: =ROUND(P36*Q36,0) -> 15083
C37: Above ₹ 1000000 | G37: 0.3 | H37: =IF(V31<=1000000,0,(V31-H34-H35-H36)) -> 0 | J37: =ROUND(G37*H37,0) -> 0 | L37: ₹ 1000001 To ₹ 1200000 | P37: 0.15 | Q37: =IF(W31>=1200000,200000,IF(W31<=1000000,0,(W31-Q34-Q35-Q36))) -> 0 | S37: =ROUND(P37*Q37,0) -> 0
L38: ₹ 1200001 To ₹ 1500000 | P38: 0.2 | Q38: =IF(W31>=1500000,300000,IF(W31<=1200000,0,(W31-Q34-Q35-Q36-Q37))) -> 0 | S38: =ROUND(P38*Q38,0) -> 0
L39: Above ₹ 1500000 | P39: 0.3 | Q39: =IF(W31<=1500000,0,(W31-1500000)) -> 0 | S39: =ROUND(P39*Q39,0) -> 0
B40: 12. | C40: Tax Payable on Total Income | V40: =SUM(J35:K37) -> 34808 | W40: =SUM(S35:T39) -> 35083
B41: 13. | C41: Rebate u/s 87A with Marginal Relief u/s 115BAC(1A) | V41: =IF(V31>500000,0,MIN(12500,V40)) -> 0 | W41: =IF(W31>=700000,0,MIN(25000,W40))+IF(W31>=722224,0,IF(W31<=700000,0,W40-(W31-700000))) -> 0
B42: 14. | C42: Tax Payable after Rebate [12-13] | V42: =V40-V41 -> 34808 | W42: =W40-W41 -> 35083
B43: 15. | C43: Health and Education Cess | V43: =ROUND(4%*V42,0) -> 1392 | W43: =ROUND(4%*W42,0) -> 1403
B44: 16. | C44: Total Tax & Cess [14+15] | V44: =V42+V43 -> 36200 | W44: =W42+W43 -> 36486
B45: 17. | C45: Relief u/s 89 | V45: =backE!W43 -> 0 | W45: =V45 -> 0
B46: 18. | C46: Balance Tax after Relief [16-17] | V46: =V44-V45 -> 36200 | W46: =W44-W45 -> 36486
B47: 19. | C47: Total Taxes deducted at Sources | V47: =backE!W45 -> 43000 | W47: =V47 -> 43000
B48: 20. | C48: Amount Payable [18-19] | V48: =MAX(0,(V46-V47)) -> 0 | W48: =MAX(0,(W46-W47)) -> 0
B49: 21. | C49: Refund [19-18] | V49: =MAX(0,(V47-V46)) -> 6800 | W49: =MAX(0,(W47-W46)) -> 6514
V51: Employee Signature

Sheet reliefC
B1: RELIEF CALCULATION UNDER SECTION 89(1) | H1: =INDEX(data!A:A,MATCH(reliefC!I1,data!B:B,0)) -> 1 | I1: Pramod Kumar Saini
B2: ="Name : "&I3&" , PAN : "&I5 -> Name : Pramod Kumar Saini , PAN : ASDFG | F2: =I18 -> 0 | I2: =VLOOKUP($H$1,pk_Tb,1,0) -> 1
B3: TAX CALCULATED ON RECEIPT BASIS | I3: =VLOOKUP($H$1,pk_Tb,2,0) -> Pramod Kumar Saini
B4: Financial Year | C4: 2024-25 | D4: 2023-24 | E4: 2022-23 | F4: 2021-22 | I4: =VLOOKUP($H$1,pk_Tb,3,0) -> Teacher
B5: Tax Regime | C5: =I18 -> 0 | D5: =I15 -> 0 | E5: =I12 -> New Regime | F5: =I9 -> New Regime | I5: =VLOOKUP($H$1,pk_Tb,4,0) -> ASDFG
B6: Total Income excluding arrears | C6: =C8-C7 -> -3384 | D6: =D8 -> 0 | E6: =E8 -> 21424 | F6: =F8 -> 31411 | I6: =VLOOKUP($H$1,pk_Tb,5,0) -> GSSS Malutana
B7: Add : Arrears of salary | C7: =I17 -> 3384 | H7: 447 | I7: =VLOOKUP($H$1,pk_Tb,H7,0) -> 31411
B8: Total Income | C8: =I16 -> 0 | D8: =I13 -> 0 | E8: =I10 -> 21424 | F8: =I7 -> 31411 | H8: 448 | I8: 2142
B9: Tax on total income | C9: =ROUND(IF(C5="New Regime",SUMPRODUCT(--(C8>{300000;700000;1000000;1200000;1500000}),(C8-{300000;700000;1000000;1200000;1500000}),({0.05;0.05;0.05;0.05;0.1})),SUMPRODUCT(--(C8>{250000;500000;1000000}),(C8-{250000;500000;1000000}),({0.05;0.15;0.01}))),0) -> 0 | D9: =ROUND(IF(D5="New Regime",SUMPRODUCT(--(D8>{300000;600000;900000;1200000;1500000}),(D8-{300000;600000;900000;1200000;1500000}),({0.05;0.05;0.05;0.05;0.1})),SUMPRODUCT(--(D8>{250000;500000;1000000}),(D8-{250000;500000;1000000}),({0.05;0.15;0.01}))),0) -> 0 | E9: =ROUND(IF(E5="New Regime",SUMPRODUCT(--(E8>{250000;500000;750000;1000000;1250000;1500000}),(E8-{250000;500000;750000;1000000;1250000;1500000}),({0.05;0.05;0.05;0.05;0.05;0.05})),SUMPRODUCT(--(E8>{250000;500000;1000000}),(E8-{250000;500000;1000000}),({0.05;0.15;0.01}))),0) -> 0 | F9: =ROUND(IF(F5="New Regime",SUMPRODUCT(--(F8>{250000;500000;750000;1000000;1250000;1500000}),(F8-{250000;500000;750000;1000000;1250000;1500000}),({0.05;0.05;0.05;0.05;0.05;0.05})),SUMPRODUCT(--(F8>{250000;500000;1000000}),(F8-{250000;500000;1000000}),({0.05;0.15;0.01}))),0) -> 0 | H9: 449 | I9: New Regime
B10: Less : Rebate u/s 87A | C10: =IF(C5="New Regime",IF(C8>700000,0,MIN(25000,C9))+IF(C8>=722224,0,IF(C8<=700000,0,C9-(C8-700000))),IF(C5="Old Regime",IF(C8>500000,0,MIN(12500,C9)),0)) -> 0 | D10: =IF(D5="New Regime",IF(D8>700000,0,MIN(25000,D9)),IF(D5="Old Regime",IF(D8>500000,0,MIN(12500,D9)),0)) -> 0 | E10: =IF(E8>500000,0,MIN(12500,E9)) -> 0 | F10: =IF(F8>500000,0,MIN(12500,F9)) -> 0 | H10: 450 | I10: 21424
B11: Tax after Rebate | C11: =C9-C10 -> 0 | D11: =D9-D10 -> 0 | E11: =E9-E10 -> 0 | F11: =F9-F10 -> 0 | H11: 451 | I11: 1242
B12: Add : Education cess | C12: =ROUND(4%*C11,0) -> 0 | D12: =ROUND(4%*D11,0) -> 0 | E12: =ROUND(4%*E11,0) -> 0 | F12: =ROUND(4%*F11,0) -> 0 | H12: 452 | I12: New Regime
B13: Surcharge, if applicable | H13: 453 | I13: 0
B14: Total Tax | C14: =C11+C12 -> 0 | D14: =D11+D12 -> 0 | E14: =E11+E12 -> 0 | F14: =F11+F12 -> 0 | H14: 454 | I14: 0
B15: Total Tax (A) | F15: =SUM(C14:F14) -> 0 | H15: 455 | I15: 0
H16: 456 | I16: 0
B17: TAX CALCULATED ON ACCRUAL BASIS | H17: 457 | I17: 3384
B18: Financial Year | C18: 2024-25 | D18: 2023-24 | E18: 2022-23 | F18: 2021-22 | H18: 458 | I18: 0
B19: Tax Regime | C19: =C5 -> 0 | D19: 0 | E19: New Regime | F19: New Regime
B20: Total Income excluding arrears | C20: -3384 | D20: 0 | E20: 21424 | F20: 31411
B21: Add : Arrears of salary | D21: =I14 -> 0 | E21: =I11 -> 1242 | F21: =I8 -> 2142
B22: Total Income | C22: =C20 -> -3384 | D22: =D20+D21 -> 0 | E22: =E20+E21 -> 22666 | F22: =F20+F21 -> 33553
B23: Tax on total income | C23: =ROUND(IF(C19="New Regime",SUMPRODUCT(--(C22>{300000;700000;1000000;1200000;1500000}),(C22-{300000;700000;1000000;1200000;1500000}),({0.05;0.05;0.05;0.05;0.1})),SUMPRODUCT(--(C22>{250000;500000;1000000}),(C22-{250000;500000;1000000}),({0.05;0.15;0.01}))),0) -> 0 | D23: =ROUND(IF(D19="New Regime",SUMPRODUCT(--(D22>{300000;600000;900000;1200000;1500000}),(D22-{300000;600000;900000;1200000;1500000}),({0.05;0.05;0.05;0.05;0.1})),SUMPRODUCT(--(D22>{250000;500000;1000000}),(D22-{250000;500000;1000000}),({0.05;0.15;0.01}))),0) -> 0 | E23: =ROUND(IF(E19="New Regime",SUMPRODUCT(--(E22>{250000;500000;750000;1000000;1250000;1500000}),(E22-{250000;500000;750000;1000000;1250000;1500000}),({0.05;0.05;0.05;0.05;0.05;0.05})),SUMPRODUCT(--(E22>{250000;500000;1000000}),(E22-{250000;500000;1000000}),({0.05;0.15;0.01}))),0) -> 0 | F23: =ROUND(IF(F19="New Regime",SUMPRODUCT(--(F22>{250000;500000;750000;1000000;1250000;1500000}),(F22-{250000;500000;750000;1000000;1250000;1500000}),({0.05;0.05;0.05;0.05;0.05;0.05})),SUMPRODUCT(--(F22>{250000;500000;1000000}),(F22-{250000;500000;1000000}),({0.05;0.15;0.01}))),0) -> 0
B24: Less : Rebate u/s 87A | C24: =IF(C19="New Regime",IF(C22>700000,0,MIN(25000,C23))+IF(C22>=722224,0,IF(C22<=700000,0,C23-(C22-700000))),IF(C19="Old Regime",IF(C22>500000,0,MIN(12500,C23)),0)) -> 0 | D24: =IF(D19="New Regime",IF(D22>700000,0,MIN(25000,D23)),IF(D19="Old Regime",IF(D22>500000,0,MIN(12500,D23)),0)) -> 0 | E24: =IF(E22>500000,0,MIN(12500,E23)) -> 0 | F24: =IF(F22>500000,0,MIN(12500,F23)) -> 0
B25: Tax after Rebate | C25: =C23-C24 -> 0 | D25: =D23-D24 -> 0 | E25: =E23-E24 -> 0 | F25: =F23-F24 -> 0
B26: Add : Education cess | C26: =ROUND(4%*C25,0) -> 0 | D26: =ROUND(4%*D25,0) -> 0 | E26: =ROUND(4%*E25,0) -> 0 | F26: =ROUND(4%*F25,0) -> 0
B27: Surcharge, if applicable
B28: Total Tax | C28: =C25+C26 -> 0 | D28: =D25+D26 -> 0 | E28: =E25+E26 -> 0 | F28: =F25+F26 -> 0
B29: Total Tax (B) | F29: =SUM(C28:F28) -> 0
B31: Relief Under Section 89(1) ie Total Tax (A) - Total Tax (B) | F31: =IF((F15-F29)<1,"Nil",(F15-F29)) -> Nil
E33: Signature of the employee

Sheet form10E
B1: FORM NO.10 E
B2: [See rule 21AA]
B3: Form for furnishing particulars of income under section 192(2A) for the year ending 31 st March, 2025 for claiming relief under section 89(1) by a Government servant or an employee in a Company, Co-operative society, Local authority ,University, Institution, Association or Body.
B4: 1. Name and Address of the Employee | E4: : | F4: =reliefC!I3 -> Pramod Kumar Saini
B5: 2. Permanent Account Number | E5: : | F5: =reliefC!I5 -> ASDFG
B6: 3. Residential Status | E6: : | F6: RESIDENT
B7: Particulars of income referred to in rule 21A of the Income-tax Rules, 1962,during the previous year relevant to assessment year 2024-25 (Rs.)
B8: 1. (a) Salary received in arrears or in advance in accordance with the provisions of sub rule (2) of rule 21A | H8: =D48 -> 3384
B9: 1. (b) Payment in the nature of gratuity in respect of past services, extending over a period of not less than 5 years in accordance with the provisions of sub-rule (3) of rule 21A | H9: ---Nil---
B10: 1. (c) Payment in the nature of compensation from the employer or former employer at or in connection with termination of employment after continuous service of not less than 3 years or where the unexpired portion of term of employment is also not less than 3 years in accordance with the provisions of sub rule (4) of rule 21A | H10: ---Nil---
B11: 1. (d) Payment in commutation of pension in accordance with the provisions of sub-rule (5) of rule 21A | H11: ---Nil---
B12: 2. Detailed particulars of payments referred to above may be given in Annexure I,II,IIA,III, or IV as the case may be | H12: Annexure-I
B14: Signature of the employee
B15: Verification
B16: =" I, "&PROPER(F4)&", do hereby declare that what is stated aboveis true to the best of my knowledge and belief." -> I, Pramod Kumar Saini, do hereby declare that what is stated aboveis true to the best of my knowledge and belief.
B17: ="Verified today on the "&TEXT(C19,"MMM DD, YYYY") -> Verified today on the Nov 07, 2024
B18: Place : ---------
B19: Date : ---------- | C19: =TODAY() -> 2024-11-07
B21: Signature of the employee
B23: ANNEXURE-I
B24: [See item 2 of Form No.10E]
B25: ARREARS OR ADVANCE SALARY
B26: Sl No | C26: Particular | H26: Amount (Rs)
B27: 1 | C27: Total income (excluding salary received in arrears or advance) | H27: =H29-H28 -> -3384
B28: 2 | C28: Salary received in arrears or advance | H28: =D48 -> 3384
B29: 3 | C29: Total income (as increased by salary received in arrears or advance) [Add item 1 and item 2] | H29: =reliefC!C8 -> 0
B30: 4 | C30: Tax on total income [as per item 3] | H30: =reliefC!C14 -> 0
B31: 5 | C31: Tax on total income [as per item 1] | H31: =reliefC!C28 -> 0
B32: 6 | C32: Tax on salary received in arrears or advance [Difference of item 4 and item 5] | H32: =H30-H31 -> 0
B33: 7 | C33: Tax computed in accordance with Table "A" [Brought from column 7 of Table A] | H33: =H48 -> 0
B34: 8 | C34: Relief under Section 89(1) [Indicate difference between the amounts mentioned against item 6 and item 7] | H34: =IF((H32-H33)<1,"No Relief",H32-H33) -> No Relief
G36: Signature of the employee
E37: Name: | F37: =reliefC!I3 -> Pramod Kumar Saini
E38: Designation: | F38: =reliefC!I4 -> Teacher
E39: Office: | F39: =reliefC!I6 -> GSSS Malutana
B41: TABLE "A"
B42: [See item 7 of Annexure 1]
B43: Previous year(s) | C43: Total income of the relevent previous year (Rs.) | D43: Salary received in arrears or advance relating to the relevent previous year as mentioned in column (1) (Rs.) | E43: Total income (as increased by salary received in arrears or advance) of the relevent previous year mentioned in column (1) (Rs.) | F43: Tax on total income [as per column (2)-After Rebate and including Edn Cess and Surcharge] (Rs.) | G43: Tax on total income[as per column (4) After Rebate and including Edn Cess and Surcharge] (Rs.) | H43: Difference in tax [Amount under column (6) minus amount under column (5)] (Rs.)
B44: (1) | C44: (2) | D44: (3) | E44: (4) | F44: (5) | G44: (6) | H44: (7)
B45: 2021-22 | C45: =reliefC!F20 -> 31411 | D45: =reliefC!F21 -> 2142 | E45: =C45+D45 -> 33553 | F45: =reliefC!F14 -> 0 | G45: =reliefC!F28 -> 0 | H45: =G45-F45 -> 0
B46: 2022-23 | C46: =reliefC!E20 -> 21424 | D46: =reliefC!E21 -> 1242 | E46: =C46+D46 -> 22666 | F46: =reliefC!E14 -> 0 | G46: =reliefC!E28 -> 0 | H46: =G46-F46 -> 0
B47: 2023-24 | C47: =reliefC!D20 -> 0 | D47: =reliefC!D21 -> 0 | E47: =C47+D47 -> 0 | F47: =reliefC!D14 -> 0 | G47: =reliefC!D28 -> 0 | H47: =G47-F47 -> 0
B48: Total | C48: =SUM(C45:C47) -> 52835 | D48: 3384 | E48: 56219 | F48: 0 | G48: 0 | H48: 0
G50: Signature of the employee
E51: Name: | F51: =F37 -> Pramod Kumar Saini
E52: Designation: | F52: =F38 -> Teacher
E53: Office: | F53: =F39 -> GSSS Malutana
